[Event "*** Titled Tuesday 3|2 Blitz"]
[Site "Chess.com"]
[Date "2016.10.04"]
[Round "9"]
[White "HovmoellerHest"]
[Black "chessbia"]
[Result "1-0"]
[WhiteElo "2298"]
[BlackElo "2038"]
[TimeControl "180+2"]
[EndTime "12:49:09 PDT"]
[Termination "HovmoellerHest won by resignation"]

1. d4 {[%clk 0:03:02]} 1... d5 {[%clk 0:03:00.8]} 2. c4 {[%clk 0:03:02.9]} 2...
c6 {[%clk 0:03:02.2]} 3. Nf3 {[%clk 0:03:02.2]} 3... Nf6 {[%clk 0:03:03.8]} 4.
Nbd2 {[%clk 0:03:02.3]} 4... e6 {[%clk 0:03:05.3]} 5. g3 {[%clk 0:02:52.7]} 5...
Nbd7 {[%clk 0:03:07.2]} 6. Bg2 {[%clk 0:02:54]} 6... Be7 {[%clk 0:03:06.2]} 7.
O-O {[%clk 0:02:54.9]} 7... O-O {[%clk 0:03:07.8]} 8. Qc2 {[%clk 0:02:56.1]}
8... b6 {[%clk 0:03:08.6]} 9. e4 {[%clk 0:02:56.9]} 9... dxe4 {[%clk 0:03:05.8]}
10. Nxe4 {[%clk 0:02:58]} 10... Bb7 {[%clk 0:03:06.5]} 11. Nc3 {[%clk
0:02:54.2]} 11... Rc8 {[%clk 0:03:04.8]} 12. Rd1 {[%clk 0:02:54.3]} 12... Qc7
{[%clk 0:03:05.6]} 13. Bf4 {[%clk 0:02:53.5]} 13... Bd6 {[%clk 0:03:06.9]} 14.
Bg5 {[%clk 0:02:47.6]} 14... Qb8 {[%clk 0:03:05.7]} 15. Rac1 {[%clk 0:02:46.6]}
15... h6 {[%clk 0:03:04.4]} 16. Be3 {[%clk 0:02:43.7]} 16... Rfe8 {[%clk
0:03:01.9]} 17. Qa4 {[%clk 0:02:36.8]} 17... c5 {[%clk 0:02:58.9]} 18. d5 {[%clk
0:02:28.4]} 18... exd5 {[%clk 0:02:58.1]} 19. cxd5 {[%clk 0:02:23.7]} 19... a6
{[%clk 0:02:52.4]} 20. Nh4 {[%clk 0:02:21.9]} 20... b5 {[%clk 0:02:51.3]} 21.
Qc2 {[%clk 0:02:15.4]} 21... Ne5 {[%clk 0:02:42.9]} 22. Nf5 {[%clk 0:02:10.6]}
22... Neg4 {[%clk 0:02:43.5]} 23. Nxd6 {[%clk 0:02:09.7]} 23... Nxe3 {[%clk
0:02:43.1]} 24. Nxe8 {[%clk 0:01:50.2]} 24... Nxc2 {[%clk 0:02:42.8]} 25. Nxf6+
{[%clk 0:01:51.1]} 25... gxf6 {[%clk 0:02:42.9]} 26. Rxc2 {[%clk 0:01:52.3]}
26... Rd8 {[%clk 0:02:42.4]} 27. Ne4 {[%clk 0:01:46.4]} 27... f5 {[%clk
0:02:42.8]} 28. Nxc5 {[%clk 0:01:46.3]} 28... Qa8 {[%clk 0:02:34.1]} 29. Nxb7
{[%clk 0:01:46]} 29... Qxb7 {[%clk 0:02:34.9]} 30. d6 {[%clk 0:01:47.2]} 30...
Qb6 {[%clk 0:02:33.8]} 31. d7 {[%clk 0:01:44.5]} 31... Kg7 {[%clk 0:02:34.5]}
32. Rc8 {[%clk 0:01:41.8]} 32... Kf6 {[%clk 0:02:30]} 33. Rxd8 {[%clk
0:01:41.5]} 33... Qxd8 {[%clk 0:02:30.4]} 34. b4 {[%clk 0:01:39]} 34... Ke7
{[%clk 0:02:24.8]} 35. Bb7 {[%clk 0:01:39.6]} 35... f4 {[%clk 0:02:07.8]} 36.
Bxa6 {[%clk 0:01:39.3]} 36... fxg3 {[%clk 0:02:06.7]} 37. hxg3 {[%clk
0:01:39.8]} 37... h5 {[%clk 0:02:07.6]} 38. Bxb5 {[%clk 0:01:39]} 38... h4
{[%clk 0:02:09]} 39. gxh4 {[%clk 0:01:34.5]} 39... Qg8+ {[%clk 0:01:58]} 40. Kf1
{[%clk 0:01:34.5]} 40... Kd8 {[%clk 0:01:50.9]} 41. Rc1 {[%clk 0:01:30.5]} 1-0

[Event "*** Titled Tuesday 3|2 Blitz"]
[Site "Chess.com"]
[Date "2016.10.04"]
[Round "9"]
[White "RamonManon0g"]
[Black "Carolina-moon"]
[Result "1-0"]
[WhiteElo "2224"]
[BlackElo "2156"]
[TimeControl "180+2"]
[EndTime "12:50:13 PDT"]
[Termination "RamonManon0g won on time"]

1. d4 {[%clk 0:03:01.9]} 1... f5 {[%clk 0:02:57.6]} 2. Bg5 {[%clk 0:02:57.2]}
2... g6 {[%clk 0:02:57.3]} 3. Nc3 {[%clk 0:02:56.2]} 3... Bg7 {[%clk 0:02:56.9]}
4. e3 {[%clk 0:02:57.7]} 4... Nf6 {[%clk 0:02:56.9]} 5. h4 {[%clk 0:02:59.3]}
5... h6 {[%clk 0:02:56.6]} 6. Bf4 {[%clk 0:03:00.1]} 6... d6 {[%clk 0:02:56.9]}
7. Be2 {[%clk 0:03:01.1]} 7... O-O {[%clk 0:02:48.6]} 8. Qd2 {[%clk 0:02:56.5]}
8... Nc6 {[%clk 0:02:37.6]} 9. Nh3 {[%clk 0:02:56]} 9... e5 {[%clk 0:02:36.3]}
10. Bg3 {[%clk 0:02:52.9]} 10... f4 {[%clk 0:02:33.1]} 11. dxe5 {[%clk
0:02:48.8]} 11... fxg3 {[%clk 0:02:29.8]} 12. exf6 {[%clk 0:02:49.8]} 12...
gxf2+ {[%clk 0:02:30.9]} 13. Nxf2 {[%clk 0:02:51.6]} 13... Qxf6 {[%clk
0:02:26.6]} 14. Bf3 {[%clk 0:02:43.8]} 14... Ne5 {[%clk 0:02:17.2]} 15. Bd5+
{[%clk 0:02:41.9]} 15... Kh8 {[%clk 0:02:05.2]} 16. Nce4 {[%clk 0:02:37.7]}
16... Qe7 {[%clk 0:02:00.5]} 17. O-O-O {[%clk 0:02:36.9]} 17... c6 {[%clk
0:01:56.6]} 18. Bb3 {[%clk 0:02:37]} 18... d5 {[%clk 0:01:57]} 19. Nc3 {[%clk
0:02:30.5]} 19... b5 {[%clk 0:01:30.1]} 20. h5 {[%clk 0:02:26.7]} 20... g5
{[%clk 0:01:27.2]} 21. Nd3 {[%clk 0:02:11]} 21... Bf5 {[%clk 0:01:11.5]} 22.
Nxe5 {[%clk 0:02:09.4]} 22... Qxe5 {[%clk 0:01:12.1]} 23. Rde1 {[%clk
0:02:02.9]} 23... a5 {[%clk 0:01:12]} 24. a4 {[%clk 0:02:01.7]} 24... bxa4
{[%clk 0:01:09.9]} 25. Nxa4 {[%clk 0:02:02.7]} 25... Rab8 {[%clk 0:01:07.8]} 26.
Rhf1 {[%clk 0:01:52.3]} 26... Rb4 {[%clk 0:00:47.1]} 27. Qc3 {[%clk 0:01:33.5]}
27... Qb8 {[%clk 0:00:36.3]} 28. Qc5 {[%clk 0:01:25.8]} 28... Rxa4 {[%clk
0:00:35.3]} 29. Bxa4 {[%clk 0:01:21.4]} 29... Qxb2+ {[%clk 0:00:34.1]} 30. Kd1
{[%clk 0:01:22.8]} 30... Bg4+ {[%clk 0:00:29.3]} 31. Kd2 {[%clk 0:01:21.9]}
31... Bc3+ {[%clk 0:00:17.9]} 32. Qxc3+ {[%clk 0:01:22.2]} 32... Qxc3+ {[%clk
0:00:05.2]} 33. Kxc3 {[%clk 0:01:24.1]} 1-0

[Event "*** Titled Tuesday 3|2 Blitz"]
[Site "Chess.com"]
[Date "2016.10.04"]
[Round "9"]
[White "macko06"]
[Black "Scott-fox21"]
[Result "1-0"]
[WhiteElo "2136"]
[BlackElo "2151"]
[TimeControl "180+2"]
[EndTime "12:51:13 PDT"]
[Termination "macko06 won by resignation"]

1. d4 {[%clk 0:03:02]} 1... d5 {[%clk 0:03:00.5]} 2. c4 {[%clk 0:03:03.2]} 2...
e6 {[%clk 0:03:01.4]} 3. Nf3 {[%clk 0:03:03.2]} 3... c6 {[%clk 0:03:00.9]} 4. g3
{[%clk 0:03:04.5]} 4... dxc4 {[%clk 0:03:01.6]} 5. a4 {[%clk 0:03:04.7]} 5...
Nd7 {[%clk 0:03:02]} 6. Qc2 {[%clk 0:03:03.7]} 6... Ngf6 {[%clk 0:02:54.5]} 7.
Qxc4 {[%clk 0:03:04]} 7... Be7 {[%clk 0:02:53.3]} 8. Bg2 {[%clk 0:03:04.9]} 8...
O-O {[%clk 0:02:54.1]} 9. O-O {[%clk 0:03:06.1]} 9... Nb6 {[%clk 0:02:54.8]} 10.
Qc2 {[%clk 0:03:06.6]} 10... Nbd5 {[%clk 0:02:53.3]} 11. Bd2 {[%clk 0:03:04.1]}
11... Nb4 {[%clk 0:02:46.4]} 12. Bxb4 {[%clk 0:03:04.5]} 12... Bxb4 {[%clk
0:02:48.3]} 13. Nc3 {[%clk 0:03:05.6]} 13... Qe7 {[%clk 0:02:35.6]} 14. Rfd1
{[%clk 0:03:06.1]} 14... Rd8 {[%clk 0:02:32.1]} 15. e3 {[%clk 0:03:02]} 15...
Bd7 {[%clk 0:02:31.4]} 16. Ne5 {[%clk 0:03:02.4]} 16... Re8 {[%clk 0:02:32.2]}
17. a5 {[%clk 0:03:00.2]} 17... a6 {[%clk 0:02:32.2]} 18. Qb3 {[%clk 0:02:58.2]}
18... Rab8 {[%clk 0:02:16.5]} 19. Ra4 {[%clk 0:02:58.4]} 19... Bd6 {[%clk
0:02:15]} 20. Nc4 {[%clk 0:02:56.9]} 20... c5 {[%clk 0:01:56.7]} 21. Raa1 {[%clk
0:02:57.5]} 21... cxd4 {[%clk 0:01:53.1]} 22. exd4 {[%clk 0:02:58.5]} 22... Bc6
{[%clk 0:01:48.5]} 23. Bxc6 {[%clk 0:02:54.9]} 23... bxc6 {[%clk 0:01:50.4]} 24.
Nb6 {[%clk 0:02:55.9]} 24... Nd7 {[%clk 0:01:27.4]} 25. Nca4 {[%clk 0:02:53.2]}
25... Bc7 {[%clk 0:01:25.9]} 26. Qc4 {[%clk 0:02:53.6]} 26... Bxb6 {[%clk
0:01:19]} 27. axb6 {[%clk 0:02:43.2]} 27... Nxb6 {[%clk 0:01:19.3]} 28. Nxb6
{[%clk 0:02:42.3]} 28... Rxb6 {[%clk 0:01:21.2]} 29. Rxa6 {[%clk 0:02:42.7]}
29... Qb7 {[%clk 0:00:59.5]} 30. Rxb6 {[%clk 0:02:42]} 30... Qxb6 {[%clk
0:01:01.4]} 31. Qc3 {[%clk 0:02:41.5]} 31... Rb8 {[%clk 0:01:00]} 32. Rd2 {[%clk
0:02:37.4]} 32... Qb4 {[%clk 0:00:50.9]} 33. Rc2 {[%clk 0:02:38.4]} 33... Qxc3
{[%clk 0:00:49.2]} 34. bxc3 {[%clk 0:02:39.5]} 34... Kf8 {[%clk 0:00:49.7]} 35.
h4 {[%clk 0:02:40.3]} 35... Ke7 {[%clk 0:00:50.3]} 36. Kf1 {[%clk 0:02:41.8]}
36... Kd6 {[%clk 0:00:51]} 37. Ke2 {[%clk 0:02:42.7]} 37... c5 {[%clk
0:00:46.1]} 38. Ra2 {[%clk 0:02:39.7]} 38... cxd4 {[%clk 0:00:44.6]} 39. cxd4
{[%clk 0:02:40.8]} 39... Rb7 {[%clk 0:00:45.4]} 40. Ke3 {[%clk 0:02:40]} 40...
Kd5 {[%clk 0:00:41.1]} 41. Ra5+ {[%clk 0:02:40.2]} 41... Kd6 {[%clk 0:00:41.9]}
42. f4 {[%clk 0:02:38.8]} 42... Rb3+ {[%clk 0:00:36]} 43. Kf2 {[%clk 0:02:39.7]}
43... Ke7 {[%clk 0:00:37.1]} 44. d5 {[%clk 0:02:38.5]} 44... Rb2+ {[%clk
0:00:34.9]} 45. Kf3 {[%clk 0:02:39.2]} 45... Rb3+ {[%clk 0:00:34.6]} 46. Kg4
{[%clk 0:02:40.3]} 46... h5+ {[%clk 0:00:21.6]} 47. Kh3 {[%clk 0:02:36.8]} 47...
exd5 {[%clk 0:00:16.9]} 48. Rxd5 {[%clk 0:02:37.4]} 48... g6 {[%clk 0:00:17.5]}
49. Rg5 {[%clk 0:02:31.8]} 49... Kf6 {[%clk 0:00:18.4]} 50. f5 {[%clk
0:02:30.5]} 50... Rb5 {[%clk 0:00:10.4]} 51. fxg6 {[%clk 0:02:17.9]} 51... Rxg5
{[%clk 0:00:11]} 52. hxg5+ {[%clk 0:02:19.1]} 52... Kxg6 {[%clk 0:00:09.6]} 53.
Kh4 {[%clk 0:02:18.9]} 53... f6 {[%clk 0:00:08]} 54. gxf6 {[%clk 0:02:18.3]}
54... Kxf6 {[%clk 0:00:09.9]} 55. Kxh5 {[%clk 0:02:19.9]} 55... Kf7 {[%clk
0:00:11.3]} 56. g4 {[%clk 0:02:17.7]} 56... Kf6 {[%clk 0:00:06.9]} 57. Kh6
{[%clk 0:02:18.7]} 57... Kf7 {[%clk 0:00:08]} 58. g5 {[%clk 0:02:19]} 58... Kf8
{[%clk 0:00:08.8]} 59. Kg6 {[%clk 0:02:20.5]} 59... Kg8 {[%clk 0:00:10]} 60. Kh6
{[%clk 0:02:20.3]} 60... Kh8 {[%clk 0:00:11.3]} 61. g6 {[%clk 0:02:20]} 61...
Kg8 {[%clk 0:00:12.6]} 62. g7 {[%clk 0:02:21.5]} 1-0

[Event "*** Titled Tuesday 3|2 Blitz"]
[Site "Chess.com"]
[Date "2016.10.04"]
[Round "9"]
[White "bugsbunny444"]
[Black "Hieronymus00"]
[Result "1-0"]
[WhiteElo "2333"]
[BlackElo "2167"]
[TimeControl "180+2"]
[EndTime "12:51:56 PDT"]
[Termination "bugsbunny444 won by resignation"]

1. Nf3 {[%clk 0:03:02]} 1... Nf6 {[%clk 0:03:00.3]} 2. c4 {[%clk 0:03:03.3]}
2... g6 {[%clk 0:03:01.1]} 3. b4 {[%clk 0:03:04.3]} 3... Bg7 {[%clk 0:03:02.6]}
4. Bb2 {[%clk 0:03:06]} 4... O-O {[%clk 0:03:03]} 5. g3 {[%clk 0:03:07.6]} 5...
d6 {[%clk 0:03:03.7]} 6. Bg2 {[%clk 0:03:09.2]} 6... e5 {[%clk 0:03:01.4]} 7.
O-O {[%clk 0:03:10.8]} 7... Nc6 {[%clk 0:02:59.3]} 8. b5 {[%clk 0:03:11.7]} 8...
Ne7 {[%clk 0:03:00]} 9. d3 {[%clk 0:03:13.1]} 9... h6 {[%clk 0:02:58.2]} 10.
Nbd2 {[%clk 0:03:12.9]} 10... Be6 {[%clk 0:02:57.7]} 11. Qc2 {[%clk 0:03:05.7]}
11... Nd7 {[%clk 0:02:55.1]} 12. d4 {[%clk 0:02:54.7]} 12... Bf5 {[%clk
0:02:44.8]} 13. e4 {[%clk 0:02:49]} 13... Bg4 {[%clk 0:02:44.4]} 14. h3 {[%clk
0:02:43.1]} 14... Bxf3 {[%clk 0:02:43.2]} 15. Nxf3 {[%clk 0:02:45]} 15... exd4
{[%clk 0:02:35.6]} 16. Nxd4 {[%clk 0:02:38.2]} 16... Nc5 {[%clk 0:02:21.8]} 17.
Rad1 {[%clk 0:02:34.5]} 17... Qe8 {[%clk 0:02:13.3]} 18. Rfe1 {[%clk 0:02:30.3]}
18... Nc8 {[%clk 0:01:59.5]} 19. Nb3 {[%clk 0:02:25.7]} 19... Ne6 {[%clk
0:01:55.7]} 20. e5 {[%clk 0:02:12.8]} 20... Rb8 {[%clk 0:01:51.6]} 21. Na5
{[%clk 0:02:04.1]} 21... dxe5 {[%clk 0:01:45.1]} 22. Bxe5 {[%clk 0:01:46.2]}
22... Bxe5 {[%clk 0:01:45.2]} 23. Rxe5 {[%clk 0:01:48.1]} 23... Nd6 {[%clk
0:01:46.6]} 24. Bd5 {[%clk 0:01:16.8]} 24... Kh7 {[%clk 0:01:40.6]} 25. Rde1
{[%clk 0:01:00.1]} 25... Qd8 {[%clk 0:00:21.6]} 26. Bxe6 {[%clk 0:00:51.5]}
26... fxe6 {[%clk 0:00:22.4]} 27. Rxe6 {[%clk 0:00:53.4]} 27... Rf6 {[%clk
0:00:22]} 28. Re7+ {[%clk 0:00:46.7]} 28... Rf7 {[%clk 0:00:23.1]} 29. Qe2
{[%clk 0:00:36.9]} 29... Qf8 {[%clk 0:00:23.9]} 30. c5 {[%clk 0:00:26.5]} 30...
Nf5 {[%clk 0:00:23.3]} 31. Rxf7+ {[%clk 0:00:24]} 31... Qxf7 {[%clk 0:00:24.5]}
32. Qe6 {[%clk 0:00:19.7]} 32... Qxe6 {[%clk 0:00:24.8]} 33. Rxe6 {[%clk
0:00:20]} 33... b6 {[%clk 0:00:26.1]} 34. Nc6 {[%clk 0:00:17.7]} 34... Rf8
{[%clk 0:00:25]} 35. g4 {[%clk 0:00:16.1]} 35... Ng7 {[%clk 0:00:21.5]} 36. Re7
{[%clk 0:00:17.2]} 36... bxc5 {[%clk 0:00:22.6]} 37. Rxc7 {[%clk 0:00:15.8]}
37... Rf3 {[%clk 0:00:23.6]} 38. Kg2 {[%clk 0:00:12.6]} 38... Rf4 {[%clk
0:00:18.9]} 39. Nxa7 {[%clk 0:00:11.9]} 39... c4 {[%clk 0:00:20.2]} 40. b6
{[%clk 0:00:08.9]} 40... Kg8 {[%clk 0:00:19.4]} 41. b7 {[%clk 0:00:09.9]} 41...
Ne6 {[%clk 0:00:20.1]} 42. b8=Q+ {[%clk 0:00:10.9]} 1-0

[Event "*** Titled Tuesday 3|2 Blitz"]
[Site "Chess.com"]
[Date "2016.10.04"]
[Round "9"]
[White "AdrianaNikolova"]
[Black "Blitzstream"]
[Result "0-1"]
[WhiteElo "2254"]
[BlackElo "2542"]
[TimeControl "180+2"]
[EndTime "12:52:00 PDT"]
[Termination "Blitzstream won by resignation"]

1. e4 {[%clk 0:03:01.9]} 1... d5 {[%clk 0:03:00.7]} 2. exd5 {[%clk 0:03:02.2]}
2... Qxd5 {[%clk 0:03:02.6]} 3. Nc3 {[%clk 0:03:04.1]} 3... Qa5 {[%clk
0:03:03.2]} 4. d4 {[%clk 0:03:04.5]} 4... Nf6 {[%clk 0:03:04.4]} 5. Nf3 {[%clk
0:03:04.9]} 5... c6 {[%clk 0:03:04.9]} 6. h3 {[%clk 0:03:03.4]} 6... Bf5 {[%clk
0:03:05.2]} 7. Bd3 {[%clk 0:03:04.9]} 7... Bg6 {[%clk 0:03:04.8]} 8. Bf4 {[%clk
0:03:04.9]} 8... e6 {[%clk 0:03:05.5]} 9. Qd2 {[%clk 0:03:05.4]} 9... Bb4 {[%clk
0:03:06.4]} 10. O-O {[%clk 0:03:03.5]} 10... Nd5 {[%clk 0:03:02]} 11. Be5 {[%clk
0:02:41.8]} 11... Nxc3 {[%clk 0:02:56.4]} 12. a3 {[%clk 0:02:06.6]} 12... Ne4
{[%clk 0:02:16.9]} 13. Qxb4 {[%clk 0:01:53.1]} 13... Qxb4 {[%clk 0:02:16.9]} 14.
axb4 {[%clk 0:01:55]} 14... O-O {[%clk 0:02:16.1]} 15. Rfe1 {[%clk 0:01:42.3]}
15... Nf6 {[%clk 0:02:11.8]} 16. Bxg6 {[%clk 0:01:39.9]} 16... hxg6 {[%clk
0:02:12.4]} 17. Ra3 {[%clk 0:01:15.3]} 17... Nbd7 {[%clk 0:02:11.7]} 18. Rea1
{[%clk 0:01:16]} 18... a6 {[%clk 0:02:12.7]} 19. Bc7 {[%clk 0:01:14.3]} 19...
Rac8 {[%clk 0:02:13.3]} 20. Bd6 {[%clk 0:01:15.6]} 20... Rfd8 {[%clk 0:02:13.1]}
21. Be7 {[%clk 0:01:16.9]} 21... Re8 {[%clk 0:02:14.1]} 22. Bc5 {[%clk
0:01:17.9]} 22... Ne4 {[%clk 0:02:04.2]} 23. Re3 {[%clk 0:01:18.2]} 23... f5
{[%clk 0:01:55.5]} 24. Ne5 {[%clk 0:01:08.1]} 24... Nxe5 {[%clk 0:01:42.9]} 25.
dxe5 {[%clk 0:01:10]} 25... Nxc5 {[%clk 0:01:43.9]} 26. bxc5 {[%clk 0:01:10.3]}
26... Red8 {[%clk 0:01:45]} 27. Rb3 {[%clk 0:00:56.2]} 27... Rc7 {[%clk
0:01:45.7]} 28. f4 {[%clk 0:00:56]} 28... Rd4 {[%clk 0:01:41.9]} 29. Rf1 {[%clk
0:00:53.7]} 29... Kf7 {[%clk 0:01:40.3]} 30. Rff3 {[%clk 0:00:36.4]} 30... Ke7
{[%clk 0:01:39.7]} 31. Rfd3 {[%clk 0:00:35.6]} 31... Rxf4 {[%clk 0:01:37.8]} 32.
Rg3 {[%clk 0:00:19.2]} 32... Kf7 {[%clk 0:01:38.2]} 33. Rgd3 {[%clk 0:00:20.7]}
33... Re4 {[%clk 0:01:38.7]} 34. Rd8 {[%clk 0:00:22.2]} 34... Rxe5 {[%clk
0:01:37.6]} 35. Rb8 {[%clk 0:00:23.8]} 35... Rxc5 {[%clk 0:01:36.1]} 36. R8xb7
{[%clk 0:00:25.2]} 36... Rxb7 {[%clk 0:01:37.9]} 37. Rxb7+ {[%clk 0:00:26.9]}
37... Kf6 {[%clk 0:01:39.8]} 38. c3 {[%clk 0:00:28.8]} 38... Rb5 {[%clk
0:01:40.1]} 39. Rc7 {[%clk 0:00:28.7]} 39... Rxb2 {[%clk 0:01:32.2]} 40. Rxc6
{[%clk 0:00:29.3]} 40... Rc2 {[%clk 0:01:33.7]} 41. Rxa6 {[%clk 0:00:26.7]}
41... Rxc3 {[%clk 0:01:34.9]} 42. Kh2 {[%clk 0:00:28.6]} 42... g5 {[%clk
0:01:35.8]} 43. Rb6 {[%clk 0:00:28.8]} 43... Re3 {[%clk 0:01:36.9]} 44. Ra6
{[%clk 0:00:29.9]} 44... Kg6 {[%clk 0:01:35.3]} 45. Kg1 {[%clk 0:00:29.9]} 45...
Re4 {[%clk 0:01:25]} 46. Kf2 {[%clk 0:00:30.7]} 46... Kf6 {[%clk 0:01:25.3]} 47.
Kf3 {[%clk 0:00:31.9]} 47... g4+ {[%clk 0:01:25.5]} 48. hxg4 {[%clk 0:00:30.6]}
48... Rxg4 {[%clk 0:01:27.4]} 49. Kf2 {[%clk 0:00:31.9]} 49... Re4 {[%clk
0:01:27.5]} 50. Kf3 {[%clk 0:00:33.1]} 50... g5 {[%clk 0:01:28.3]} 51. Kf2
{[%clk 0:00:33.1]} 51... g4 {[%clk 0:01:28.9]} 52. Kg3 {[%clk 0:00:33.9]} 52...
Re3+ {[%clk 0:01:29.9]} 53. Kf2 {[%clk 0:00:34.9]} 53... Rc3 {[%clk 0:01:30.8]}
54. Rb6 {[%clk 0:00:35.2]} 54... f4 {[%clk 0:01:27.1]} 55. Ra6 {[%clk
0:00:31.6]} 55... Kf5 {[%clk 0:01:27]} 56. Ra8 {[%clk 0:00:30.1]} 56... e5
{[%clk 0:01:27.9]} 57. Rf8+ {[%clk 0:00:30.7]} 57... Ke4 {[%clk 0:01:28.8]} 58.
Rg8 {[%clk 0:00:32.6]} 58... g3+ {[%clk 0:01:30.1]} 59. Ke2 {[%clk 0:00:28.2]}
59... Rc2+ {[%clk 0:01:30.8]} 60. Kf1 {[%clk 0:00:29.4]} 60... Ke3 {[%clk
0:01:31.7]} 0-1

[Event "*** Titled Tuesday 3|2 Blitz"]
[Site "Chess.com"]
[Date "2016.10.04"]
[Round "9"]
[White "Ar4uha"]
[Black "Malev212"]
[Result "0-1"]
[WhiteElo "2478"]
[BlackElo "2364"]
[TimeControl "180+2"]
[EndTime "12:52:19 PDT"]
[Termination "Malev212 won by resignation"]

1. e4 {[%clk 0:03:02]} 1... c6 {[%clk 0:03:00]} 2. Nc3 {[%clk 0:03:03]} 2... d5
{[%clk 0:02:44.9]} 3. Qe2 {[%clk 0:03:04.1]} 3... Nf6 {[%clk 0:02:33.9]} 4. e5
{[%clk 0:02:54.3]} 4... Ng4 {[%clk 0:02:32.9]} 5. h3 {[%clk 0:02:45.9]} 5... Nh6
{[%clk 0:02:32.8]} 6. g4 {[%clk 0:02:47.2]} 6... Na6 {[%clk 0:02:29.9]} 7. Bg2
{[%clk 0:02:46]} 7... d4 {[%clk 0:02:28.4]} 8. Ne4 {[%clk 0:02:44.2]} 8... d3
{[%clk 0:02:29.2]} 9. Qxd3 {[%clk 0:02:39.7]} 9... Qxd3 {[%clk 0:02:29.9]} 10.
cxd3 {[%clk 0:02:41.6]} 10... Nb4 {[%clk 0:02:30.6]} 11. Ke2 {[%clk 0:02:38.3]}
11... f5 {[%clk 0:02:31.3]} 12. exf6 {[%clk 0:02:32.4]} 12... exf6 {[%clk
0:02:31.6]} 13. a3 {[%clk 0:01:57.4]} 13... Nc2 {[%clk 0:02:30.4]} 14. Rb1
{[%clk 0:01:58.2]} 14... Be6 {[%clk 0:02:24.8]} 15. Nf3 {[%clk 0:01:56.4]} 15...
Ba2 {[%clk 0:02:23.8]} 16. Nc3 {[%clk 0:01:43.1]} 16... Bxb1 {[%clk 0:02:22.1]}
17. Nxb1 {[%clk 0:01:45]} 17... O-O-O {[%clk 0:02:22.6]} 18. b4 {[%clk
0:01:44.6]} 18... Nd4+ {[%clk 0:02:16.8]} 19. Nxd4 {[%clk 0:01:45.4]} 19... Rxd4
{[%clk 0:02:17.8]} 20. Bb2 {[%clk 0:01:47.3]} 20... Rd7 {[%clk 0:02:18.3]} 21.
Nc3 {[%clk 0:01:48.7]} 21... Bd6 {[%clk 0:02:16.9]} 22. Ne4 {[%clk 0:01:49.8]}
22... Re8 {[%clk 0:02:16.7]} 23. Kd1 {[%clk 0:01:46.3]} 23... Be5 {[%clk
0:02:17.2]} 24. Bxe5 {[%clk 0:01:37.7]} 24... Rxe5 {[%clk 0:02:17.1]} 25. Kc2
{[%clk 0:01:38.6]} 25... f5 {[%clk 0:02:15.7]} 26. Nc5 {[%clk 0:01:35.5]} 26...
Rd8 {[%clk 0:02:15.9]} 27. g5 {[%clk 0:01:34.5]} 27... Nf7 {[%clk 0:02:16.4]}
28. h4 {[%clk 0:01:33.4]} 28... Nd6 {[%clk 0:02:15.3]} 29. a4 {[%clk 0:01:29.4]}
29... a5 {[%clk 0:02:12.4]} 30. d4 {[%clk 0:01:21.2]} 30... Re2 {[%clk
0:02:12.7]} 31. Rf1 {[%clk 0:01:17.3]} 31... axb4 {[%clk 0:02:12.2]} 32. Bf3
{[%clk 0:01:13.2]} 32... Re7 {[%clk 0:02:12.3]} 33. d3 {[%clk 0:01:06.1]} 33...
Ne8 {[%clk 0:02:10.2]} 34. Nb3 {[%clk 0:01:02]} 34... Nc7 {[%clk 0:02:10.2]} 35.
a5 {[%clk 0:01:00.9]} 35... Ne6 {[%clk 0:02:07.6]} 36. d5 {[%clk 0:00:42.9]}
36... cxd5 {[%clk 0:02:07.3]} 37. Kd2 {[%clk 0:00:40.4]} 37... Rc7 {[%clk
0:02:04.8]} 38. Rb1 {[%clk 0:00:40.5]} 38... Rd6 {[%clk 0:02:04.3]} 39. Nc1
{[%clk 0:00:36.5]} 39... Nd4 {[%clk 0:02:03.3]} 40. Bd1 {[%clk 0:00:37.5]} 40...
b3 {[%clk 0:02:02.8]} 41. Nxb3 {[%clk 0:00:32.7]} 41... Nxb3+ {[%clk 0:02:02.6]}
42. Rxb3 {[%clk 0:00:34.6]} 42... Rc5 {[%clk 0:01:57.7]} 43. Rb4 {[%clk
0:00:27.5]} 43... Rxa5 {[%clk 0:01:56.6]} 44. Bf3 {[%clk 0:00:28.8]} 44... g6
{[%clk 0:01:52.8]} 45. h5 {[%clk 0:00:28]} 45... Kc7 {[%clk 0:01:52]} 46. Ke3
{[%clk 0:00:28]} 46... b5 {[%clk 0:01:50.9]} 47. Rb1 {[%clk 0:00:28.1]} 47...
Kb6 {[%clk 0:01:50.4]} 48. Kf4 {[%clk 0:00:28.9]} 48... gxh5 {[%clk 0:01:46.9]}
49. Kxf5 {[%clk 0:00:21.4]} 49... Ra2 {[%clk 0:01:47.1]} 50. Ke5 {[%clk
0:00:16.7]} 50... Rd8 {[%clk 0:01:47.5]} 51. Bxd5 {[%clk 0:00:17.3]} 51... Rxf2
{[%clk 0:01:47.8]} 52. Be4 {[%clk 0:00:18.7]} 52... Rd7 {[%clk 0:01:46.6]} 53.
Rh1 {[%clk 0:00:18.7]} 53... b4 {[%clk 0:01:42.9]} 54. Rxh5 {[%clk 0:00:19.8]}
54... b3 {[%clk 0:01:43.2]} 55. Rh1 {[%clk 0:00:17.3]} 55... b2 {[%clk
0:01:43.5]} 56. Rb1 {[%clk 0:00:17.2]} 56... Kb5 {[%clk 0:01:42.4]} 57. d4
{[%clk 0:00:18.1]} 57... Kb4 {[%clk 0:01:40.3]} 58. d5 {[%clk 0:00:19.4]} 58...
Kc3 {[%clk 0:01:40.1]} 59. Ke6 {[%clk 0:00:20.5]} 59... Ra7 {[%clk 0:01:38.5]}
60. d6 {[%clk 0:00:21.1]} 60... Re2 {[%clk 0:01:38.8]} 61. d7 {[%clk 0:00:08.1]}
61... Rxe4+ {[%clk 0:01:36.3]} 62. Kf5 {[%clk 0:00:07.1]} 62... Rd4 {[%clk
0:01:35]} 0-1